bitfinex-derivatives/quotes_BNBF0:USTF0_20250220
["timestamp","ask_amount","ask_price","bid_price","bid_amount"]
[1740075901816,3.09704605,654.66,654.17,1.13018886]
[1740075902009,3.09704605,654.65,654.17,1.13018886]
[1740075902210,3.09704605,654.64,654.17,1.13018886]
[1740075902408,2.20849699,654.7,654.17,1.13018886]
[1740075902409,3.09704605,654.63,654.17,1.13018886]
[1740075902614,3.09704605,654.62,654.17,1.13018886]
[1740075902815,3.09704605,654.61,654.17,1.13018886]
[1740075903017,3.09704605,654.6,654.17,1.13018886]
[1740075903216,3.09704605,654.59,654.09,1.13018886]
[1740075903416,3.09704605,654.58,654.09,1.13018886]
[1740075903611,3.09704605,654.57,654.09,1.13018886]
[1740075903816,3.09704605,654.56,654.09,1.13018886]
[1740075904015,3.09704605,654.55,654.09,1.13018886]
[1740075904213,3.09704605,654.54,654.09,1.13018886]
[1740075904417,3.09704605,654.53,654.09,1.13018886]
[1740075904719,3.09704605,654.52,654.09,1.13018886]
[1740075904919,3.09704605,654.51,654.09,1.13018886]
[1740075905113,3.09704605,654.5,654.09,1.13018886]
[1740075905318,3.09704605,654.49,654.09,1.13018886]
[1740075905522,2.20849699,654.52,654.09,1.13018886]
[1740075905722,3.09733355,654.51,654.09,1.13018886]
[1740075906022,3.09733355,654.5,654.09,1.13018886]
[1740075906216,3.09733355,654.49,654.09,1.13018886]
[1740075906418,2.20849699,654.52,654.2,1.13018886]
[1740075906615,3.09720233,654.51,654.2,1.13018886]
[1740075906813,3.09720233,654.5,654.2,1.13018886]
[1740075907018,1.895,654.95,654.2,1.13018886]
[1740075907321,8.44352334,654.94,654.2,1.13018886]
[1740075907519,6.23352931,654.93,654.2,1.13018886]
[1740075907719,3.09715555,654.92,654.2,1.13018886]
[1740075907920,3.09715555,654.91,654.2,1.13018886]
[1740075908120,3.09715555,654.9,654.2,1.13018886]
[1740075908317,3.09715555,654.89,654.2,1.13018886]
[1740075908517,3.09715555,654.88,654.2,1.13018886]
[1740075908717,3.09715555,654.87,654.2,1.13018886]
[1740075908915,3.09715555,654.86,654.2,1.13018886]
[1740075909118,3.09715555,654.85,654.2,1.13018886]
[1740075909421,2.20999403,654.85,654.22,1.13018886]
[1740075910221,3.09678651,654.84,654.22,1.13018886]
[1740075910521,3.09678651,654.83,654.22,1.13018886]
[1740075910721,3.09678651,654.82,654.22,1.13018886]
[1740075910918,3.09678651,654.81,654.22,1.13018886]
[1740075911119,3.09678651,654.8,654.22,1.13018886]
[1740075911319,3.09678651,654.79,654.22,1.13018886]
[1740075911525,3.09678651,654.78,654.22,1.13018886]
[1740075911725,3.09678651,654.78,653.81,0.30589926]
[1740075911726,3.09678651,654.77,654.03,1.13018886]
[1740075911925,3.09678651,654.76,654.03,1.13018886]
[1740075912124,3.09678651,654.75,654.03,1.13018886]
[1740075912428,3.09678651,654.74,654.03,1.13018886]
[1740075912622,3.09678651,654.73,654.03,1.13018886]
[1740075912826,3.09678651,654.72,654.03,1.13018886]
[1740075913028,3.09678651,654.71,654.03,1.13018886]
[1740075913221,3.09678651,654.7,654.03,1.13018886]
[1740075913430,3.09678651,654.69,654.03,1.13018886]
[1740075913730,3.09678651,654.68,654.05,1.13018886]
[1740075913923,3.09678651,654.67,654.05,1.13018886]
[1740075914127,3.09678651,654.66,654.05,1.13018886]
[1740075914325,2.20999403,654.71,654.05,1.13018886]
[1740075914326,3.09678651,654.65,654.05,1.13018886]
[1740075914526,3.09678651,654.64,654.05,1.13018886]
[1740075914724,2.20999403,654.71,654.05,1.13018886]
[1740075915023,3.09940334,654.7,654.05,1.13018886]
[1740075915226,5.30939737,654.69,654.05,1.13018886]
[1740075915430,3.09940334,654.68,654.05,1.13018886]
[1740075915625,3.09940334,654.67,654.05,1.13018886]
[1740075915827,2.20999403,654.69,654.05,1.13018886]
[1740075915828,3.09940334,654.66,654.05,1.13018886]
[1740075916027,2.20999403,654.69,654.05,1.13018886]
[1740075916028,3.09940334,654.65,654.05,1.13018886]
[1740075916231,3.10002053,654.64,654.05,1.13018886]
[1740075916433,2.20999403,654.69,654.05,1.13018886]
[1740075916634,3.10059923,654.68,654.05,1.13018886]
[1740075916823,3.10059923,654.67,654.05,1.13018886]
[1740075917029,3.10059923,654.66,654.05,1.13018886]
[1740075917326,3.10057296,654.65,654.05,1.13018886]
[1740075917530,2.20999403,654.67,654.05,1.13018886]
[1740075918025,2.20999403,654.67,653.82,1.12967756]
[1740075918026,3.10078861,654.66,654.07,1.13018886]
[1740075918226,2.20999403,654.67,654.07,1.13018886]
[1740075918429,3.10079716,654.66,654.07,1.13018886]
[1740075918629,2.20999403,654.66,654.07,1.13018886]
[1740075920229,1.895,654.95,654.07,1.13018886]
[1740075920429,3.1012656,654.94,654.07,1.13018886]
[1740075920629,3.1012656,654.93,654.07,1.13018886]
[1740075920829,3.1012656,654.92,654.07,1.13018886]
[1740075921030,3.1012656,654.91,654.07,1.13018886]
[1740075921228,3.1012656,654.9,654.07,1.13018886]
[1740075921430,3.1012656,654.89,654.07,1.13018886]
[1740075921632,3.1012656,654.88,654.07,1.13018886]
[1740075921935,3.1012656,654.87,654.17,1.13018886]
[1740075922135,3.1012656,654.86,654.17,1.13018886]
[1740075922440,3.1012656,654.85,654.17,1.13018886]
[1740075922629,3.1012656,654.84,654.17,1.13018886]
[1740075922930,3.1012656,654.83,654.17,1.13018886]
[1740075923235,3.1012656,654.82,654.17,1.13018886]
[1740075923433,3.1012656,654.81,654.17,1.13018886]
[1740075923629,3.1012656,654.8,654.17,1.13018886]
[1740075923832,3.1012656,654.79,654.17,1.13018886]
[1740075924033,3.1012656,654.78,654.16,1.13018886]
[1740075924234,3.1012656,654.77,654.16,1.13018886]
[1740075924438,3.1012656,654.76,654.16,1.13018886]
[1740075924629,2.21277253,654.85,654.16,1.13018886]
[1740075924630,3.1012656,654.75,654.16,1.13018886]
[1740075924831,3.1012656,654.74,654.16,1.13018886]
[1740075925029,3.1012656,654.73,654.16,1.13018886]
[1740075925230,3.1012656,654.72,654.16,1.13018886]
[1740075925438,3.1012656,654.71,654.16,1.13018886]
[1740075925635,3.1012656,654.7,654.16,1.13018886]
[1740075925833,3.1012656,654.69,654.16,1.13018886]
[1740075926031,2.21277253,654.75,654.16,1.13018886]
[1740075926032,3.1012656,654.68,654.16,1.13018886]
[1740075926237,3.1012656,654.67,654.16,1.13018886]
[1740075926537,2.21277253,654.75,654.16,1.13018886]
[1740075926737,3.10190707,654.74,654.16,1.13018886]
[1740075927037,3.10190707,654.73,654.16,1.13018886]
[1740075927240,3.10190707,654.72,654.16,1.13018886]
[1740075927439,3.10190707,654.71,654.16,1.13018886]
[1740075927638,3.10190707,654.7,654.16,1.13018886]
[1740075927936,3.10190707,654.69,654.16,1.13018886]
[1740075928133,3.10190707,654.68,654.16,1.13018886]
[1740075928334,3.10190707,654.67,654.16,1.13018886]
[1740075928538,3.10190707,654.66,654.16,1.13018886]
[1740075928737,2.21277253,654.73,654.16,1.13018886]
[1740075928938,3.10218539,654.72,654.16,1.13018886]
[1740075929235,3.10218539,654.71,654.39,1.13018886]
[1740075929439,3.10218539,654.7,654.39,1.13018886]
[1740075929740,3.10218539,654.69,654.39,1.13018886]
[1740075929940,3.10218539,654.68,654.39,1.13018886]
[1740075930241,3.10218539,654.67,654.39,1.13018886]
[1740075930440,3.10218539,654.66,654.39,1.13018886]
[1740075930641,2.21277253,654.71,654.39,1.13018886]
[1740075930840,3.1025162,654.7,654.39,1.13018886]
[1740075931044,3.1025162,654.69,654.39,1.13018886]
[1740075931235,2.21277253,654.71,654.39,1.13018886]
[1740075931236,3.1025162,654.68,654.39,1.13018886]
[1740075931539,3.1025162,654.67,654.39,1.13018886]
[1740075931739,3.1025162,654.66,654.39,1.13018886]
[1740075931935,3.10296721,654.65,654.39,1.13018886]
[1740075932137,2.21277253,654.66,654.39,1.13018886]
[1740075932942,2.21277253,654.65,654.39,1.13018886]
[1740075934746,2.21277253,654.64,654.39,1.13018886]
[1740075935243,2.21277253,654.64,653.74,1.13018886]
[1740075936645,2.21277253,654.63,653.74,1.13018886]
[1740075937948,2.21277253,654.63,653.77,1.13018886]
[1740075938142,2.21277253,654.62,653.77,1.13018886]
[1740075939548,2.21277253,654.61,653.77,1.13018886]
[1740075939949,3.10213185,654.6,653.77,1.13018886]
[1740075940151,2.21277253,654.61,653.74,1.13018886]
[1740075940347,3.1021544,654.6,653.74,1.13018886]
[1740075940544,3.10202852,654.59,653.74,1.13018886]
[1740075940849,2.21277253,654.61,653.74,1.13018886]
[1740075941050,3.10202843,654.6,653.74,1.13018886]
[1740075941245,3.10202843,654.59,653.74,1.13018886]
[1740075941450,2.21277253,654.61,653.74,1.13018886]
[1740075941650,2.21277253,654.58,653.74,1.13018886]
[1740075942045,3.10195344,654.57,653.74,1.13018886]
[1740075942250,3.10195344,654.56,653.74,1.13018886]
[1740075942555,3.10195344,654.55,653.74,1.13018886]
[1740075942858,3.10195344,654.54,653.74,1.13018886]
[1740075943048,3.10195344,654.53,653.77,1.13018886]
[1740075943247,3.10195344,654.52,653.77,1.13018886]
[1740075943446,2.21277253,654.54,653.77,1.13018886]
[1740075943447,3.10195344,654.51,653.77,1.13018886]
[1740075943651,3.10195344,654.5,653.77,1.13018886]
[1740075943850,3.10195344,654.49,653.77,1.13018886]
[1740075944047,3.10195344,654.48,653.77,1.13018886]
[1740075944248,3.10195344,654.47,653.77,1.13018886]
[1740075944452,3.10195344,654.46,653.77,1.13018886]
[1740075944749,3.10195344,654.45,653.77,1.13018886]
[1740075944951,2.21277253,654.48,653.77,1.13018886]
[1740075944952,3.10195344,654.44,653.77,1.13018886]
[1740075945152,3.10195344,654.43,654.12,1.13018886]
[1740075945447,3.10195344,654.42,654.12,1.13018886]
[1740075945652,3.10195344,654.41,654.12,1.13018886]
[1740075945853,2.21277253,654.48,654.12,1.13018886]
[1740075946154,2.21277253,654.41,654.12,1.13018886]
[1740075946353,3.10155639,654.4,654.12,1.13018886]
[1740075946652,2.21277253,654.41,654.12,1.13018886]
[1740075947954,2.21277253,654.41,653.55,1.35561307]
[1740075947955,2.21277253,654.4,654.04,1.13018886]
[1740075949958,2.21277253,654.39,654.04,1.13018886]
[1740075950457,2.21277253,654.39,653.81,0.30589926]
[1740075952159,2.21277253,654.38,653.81,0.30589926]
[1740075953860,0.641,654.67,653.81,0.30589926]
[1740075954060,3.09815607,654.66,653.81,0.30589926]
[1740075954359,3.09815607,654.65,653.81,0.30589926]
[1740075954560,3.09815607,654.64,653.81,0.30589926]
[1740075954756,3.09815607,654.63,653.81,0.30589926]
[1740075954956,3.09815607,654.62,653.81,0.30589926]
[1740075955160,3.09815607,654.61,653.81,0.30589926]
[1740075955354,3.09815607,654.6,653.81,0.30589926]
[1740075955560,3.09815607,654.59,653.81,0.30589926]
[1740075955761,3.09815607,654.58,653.81,0.30589926]
[1740075956058,3.09815607,654.57,653.81,0.30589926]
[1740075956259,3.09815607,654.56,653.81,0.30589926]
[1740075956463,2.21083616,654.57,653.81,0.30589926]
[1740075956464,3.09815607,654.55,653.81,0.30589926]
[1740075956661,3.09815607,654.54,653.81,0.30589926]
[1740075956858,3.09815607,654.53,653.81,0.30589926]
[1740075957058,3.09815607,654.52,653.81,0.30589926]
[1740075957255,3.09815607,654.51,653.81,0.30589926]
[1740075957460,3.09815607,654.5,653.81,0.30589926]
[1740075957661,3.09815607,654.49,653.81,0.30589926]
[1740075957955,3.09815607,654.48,653.81,0.30589926]
[1740075958262,3.09815607,654.47,653.81,0.30589926]
[1740075958461,3.09815607,654.46,653.81,0.30589926]
[1740075958661,2.21083616,654.47,653.81,0.30589926]
[1740075958662,3.09815607,654.45,653.81,0.30589926]
[1740075958861,3.09815607,654.44,653.81,0.30589926]
[1740075959160,3.09815607,654.43,653.81,0.30589926]
[1740075959357,3.09815607,654.42,653.81,0.30589926]
[1740075959561,3.09815607,654.41,653.81,0.30589926]
[1740075959861,3.09815607,654.4,653.81,0.30589926]
[1740075960061,3.09815607,654.39,653.81,0.30589926]
[1740075960262,3.09815607,654.38,653.81,0.30589926]
[1740075960565,2.21083616,654.47,653.81,0.30589926]
[1740075960566,5.30899223,654.37,653.81,0.30589926]
[1740075960765,3.09815607,654.36,653.81,0.30589926]
[1740075960960,3.09815607,654.35,653.81,0.30589926]
[1740075961158,3.09815607,654.34,653.81,0.30589926]
[1740075961464,2.21083616,654.37,653.81,0.30589926]
[1740075961664,3.09688908,654.36,653.81,0.30589926]
[1740075961964,3.09688908,654.35,653.81,0.30589926]
[1740075962165,2.21083616,654.37,653.81,0.30589926]
[1740075962357,0.641,654.67,653.81,0.30589926]
[1740075962559,3.09616555,654.66,653.81,0.30589926]
[1740075962762,3.09616555,654.65,653.81,0.30589926]
[1740075962963,3.09616555,654.64,653.81,0.30589926]
[1740075963265,5.3056167,654.63,653.81,0.30589926]
[1740075963459,3.09616555,654.62,653.81,0.30589926]
[1740075963660,3.09616555,654.61,653.81,0.30589926]
[1740075963861,3.09616555,654.6,653.81,0.30589926]
[1740075964062,3.09616555,654.59,653.81,0.30589926]
[1740075964264,3.09616555,654.58,653.81,0.30589926]
[1740075964460,3.09616555,654.57,653.81,0.30589926]
[1740075964665,3.09616555,654.56,653.81,0.30589926]
[1740075964862,3.09616555,654.55,653.81,0.30589926]
[1740075965068,3.09616555,654.54,653.81,0.30589926]
[1740075965269,3.09616555,654.53,654.19,1.13018886]
[1740075965467,2.20945115,654.59,654.19,1.13018886]
[1740075965668,3.09536807,654.58,654.19,1.13018886]
[1740075965869,1.48,654.71,654.19,1.13018886]
[1740075966169,3.09519764,654.7,654.19,1.13018886]
[1740075966363,3.09519764,654.69,654.19,1.13018886]
[1740075966566,3.09519764,654.68,654.19,1.13018886]
[1740075966763,3.09519764,654.67,654.19,1.13018886]
[1740075966964,3.09519764,654.66,654.19,1.13018886]
[1740075967168,3.09519764,654.65,654.19,1.13018886]
[1740075967368,3.09519764,654.64,654.19,1.13018886]
[1740075967670,3.09519764,654.63,654.19,1.13018886]
[1740075967870,3.09519764,654.62,654.19,1.13018886]
[1740075968070,3.09519764,654.61,654.19,1.13018886]
[1740075968366,3.09519764,654.6,654.19,1.13018886]
[1740075968667,3.09519764,654.59,654.19,1.13018886]
[1740075968868,3.09519764,654.58,654.19,1.13018886]
[1740075969070,3.09519764,654.57,654.22,1.13018886]
[1740075969271,2.20860209,654.62,654.22,1.13018886]
[1740075969467,5.30442675,654.61,654.22,1.13018886]
[1740075969665,3.09582466,654.6,654.22,1.13018886]
[1740075969871,3.09582466,654.59,654.22,1.13018886]
[1740075970071,3.09582466,654.58,654.22,1.13018886]
[1740075970272,3.09582466,654.57,654.22,1.13018886]
[1740075970571,3.09582466,654.56,654.22,1.13018886]
[1740075970765,3.09582466,654.55,654.22,1.13018886]
[1740075970972,2.20860209,654.61,653.86,1.12967756]
[1740075970973,3.09582466,654.54,654.05,1.13018886]
[1740075971273,5.30442675,654.53,654.05,1.13018886]
[1740075971468,3.09582466,654.52,654.05,1.13018886]
[1740075971669,3.09582466,654.51,654.05,1.13018886]
[1740075971867,3.09582466,654.5,654.05,1.13018886]
[1740075972069,3.09582466,654.49,654.05,1.13018886]
[1740075972270,3.09582466,654.48,654.05,1.13018886]
[1740075972470,3.09582466,654.47,654.05,1.13018886]
[1740075972670,3.09582466,654.46,654.05,1.13018886]
[1740075972972,3.09582466,654.45,654.05,1.13018886]
[1740075973171,3.09582466,654.44,654.05,1.13018886]
[1740075973371,3.09582466,654.43,654.05,1.13018886]
[1740075973567,3.09582466,654.42,654.05,1.13018886]
[1740075973766,2.20860209,654.48,654.05,1.13018886]
[1740075973970,3.09592105,654.47,654.05,1.13018886]
[1740075974166,3.09592105,654.46,653.91,1.13018886]
[1740075974367,3.09592105,654.45,653.91,1.13018886]
[1740075974572,3.09592105,654.44,653.91,1.13018886]
[1740075974768,3.09592105,654.43,653.91,1.13018886]
[1740075974966,3.09592105,654.42,653.91,1.13018886]
[1740075975166,3.09592105,654.41,653.91,1.13018886]
[1740075975370,3.09612002,654.4,653.91,1.13018886]
[1740075975566,1.48,654.71,653.91,1.13018886]
[1740075975772,3.09627983,654.7,653.91,1.13018886]
[1740075975967,3.09627983,654.69,653.91,1.13018886]
[1740075976274,3.09627983,654.68,653.91,1.13018886]
[1740075976471,3.09627983,654.67,653.91,1.13018886]
[1740075976668,3.09627983,654.66,653.91,1.13018886]
[1740075976973,3.09627983,654.65,653.91,1.13018886]
[1740075977173,3.09627983,654.64,653.91,1.13018886]
[1740075977374,2.2094813,654.69,653.97,1.13018886]
[1740075977375,3.09627983,654.63,653.97,1.13018886]
[1740075977572,3.09627983,654.62,653.97,1.13018886]
[1740075977873,3.09627983,654.61,653.97,1.13018886]
[1740075978074,3.09627983,654.6,653.97,1.13018886]
[1740075978268,3.09627983,654.59,653.97,1.13018886]
[1740075978473,3.09627983,654.58,653.97,1.13018886]
[1740075978668,3.09627983,654.57,653.97,1.13018886]
[1740075978974,3.09627983,654.56,653.97,1.13018886]
[1740075979170,3.09627983,654.55,653.97,1.13018886]
[1740075979373,3.09627983,654.54,653.97,1.13018886]
[1740075979571,3.09627983,654.53,653.97,1.13018886]
[1740075979780,3.09627983,654.52,653.97,1.13018886]
[1740075979981,3.09627983,654.51,654.2,1.13018886]
[1740075980182,3.09627983,654.5,654.2,1.13018886]
[1740075980383,3.09627983,654.49,654.2,1.13018886]
[1740075980584,3.09627983,654.48,654.2,1.13018886]
[1740075980885,3.09627983,654.47,654.2,1.13018886]
[1740075981191,2.2094813,654.48,654.2,1.13018886]
[1740075981416,3.09733281,654.47,654.2,1.13018886]
[1740075981613,2.2094813,654.47,654.2,1.13018886]
[1740075983400,2.2094813,654.47,654.25,1.13018886]
[1740075985793,2.2094813,654.47,654.26,1.13018886]
[1740075986188,1.897,654.86,654.26,1.13018886]
[1740075986393,3.09918889,654.85,654.26,1.13018886]
[1740075986591,3.09918889,654.84,654.26,1.13018886]
[1740075986789,1.897,654.86,654.26,1.13018886]
[1740075986790,3.09918889,654.83,654.26,1.13018886]
[1740075986986,3.09918889,654.82,654.26,1.13018886]
[1740075987191,3.09918889,654.81,654.26,1.13018886]
[1740075987392,3.09918889,654.8,654.26,1.13018886]
[1740075987593,3.09918889,654.79,654.26,1.13018886]
[1740075987794,3.09918889,654.78,654.26,1.13018886]
[1740075987991,3.09918889,654.77,654.26,1.13018886]
[1740075988192,2.21168179,654.81,654.05,1.13018886]
[1740075988193,3.09918889,654.76,654.05,1.13018886]
[1740075988490,3.09918889,654.75,654.05,1.13018886]
[1740075988688,3.09918889,654.74,654.05,1.13018886]
[1740075988890,3.09918889,654.73,654.05,1.13018886]
[1740075989091,3.09918889,654.72,654.05,1.13018886]
[1740075989291,3.09918889,654.71,654.05,1.13018886]
[1740075989494,3.09918889,654.7,654.05,1.13018886]
[1740075989692,3.09918889,654.69,654.05,1.13018886]
[1740075989891,3.09918889,654.68,654.05,1.13018886]
[1740075990191,3.09918889,654.67,654.05,1.13018886]
[1740075990388,3.09918889,654.66,654.05,1.13018886]
[1740075990589,3.09918889,654.65,654.05,1.13018886]
[1740075990893,3.09918889,654.64,654.05,1.13018886]
[1740075991196,3.09918889,654.63,654.05,1.13018886]
[1740075991395,3.09918889,654.62,654.05,1.13018886]
[1740075991593,3.09918889,654.61,654.06,1.13018886]
[1740075991793,3.09918889,654.6,654.06,1.13018886]
[1740075992088,3.09918889,654.59,654.06,1.13018886]
[1740075992294,3.09918889,654.58,654.06,1.13018886]
[1740075992493,3.09918889,654.57,654.06,1.13018886]
[1740075992693,3.09918889,654.56,654.06,1.13018886]
[1740075992894,3.09918889,654.55,654.06,1.13018886]
[1740075993096,3.09918889,654.54,654.06,1.13018886]
[1740075993296,2.21168179,654.64,654.06,1.13018886]
[1740075993498,3.10137954,654.63,654.06,1.13018886]
[1740075993793,3.10137954,654.62,654.06,1.13018886]
[1740075993997,3.10137954,654.61,654.06,1.13018886]
[1740075994199,2.21168179,654.63,654.01,1.13018886]
[1740075994996,0.642,654.91,654.01,1.13018886]
[1740075995197,3.10041079,654.9,654.01,1.13018886]
[1740075995396,3.10041079,654.89,654.01,1.13018886]
[1740075995595,3.10041079,654.88,654.01,1.13018886]
[1740075995797,3.10041079,654.87,654.01,1.13018886]
[1740075995997,3.10041079,654.86,654.01,1.13018886]
[1740075996195,3.10041079,654.85,654.01,1.13018886]
[1740075996404,3.10041079,654.84,654.01,1.13018886]
[1740075996601,3.10041079,654.83,654.01,1.13018886]
[1740075996797,3.10041079,654.82,654.01,1.13018886]
[1740075996997,3.10041079,654.81,654.01,1.13018886]
[1740075997198,3.10041079,654.8,654.01,1.13018886]
[1740075997400,3.10041079,654.79,654.25,1.13018886]
[1740075997706,5.31225757,654.78,654.25,1.13018886]
[1740075997903,3.10041079,654.77,654.25,1.13018886]
[1740075998099,3.10041079,654.76,654.25,1.13018886]
[1740075998305,3.10041079,654.75,654.25,1.13018886]
[1740075998504,3.10041079,654.74,654.25,1.13018886]
[1740075998806,3.10041079,654.73,654.25,1.13018886]
[1740075999006,3.10041079,654.72,654.25,1.13018886]
[1740075999202,3.10041079,654.71,654.25,1.13018886]
[1740075999401,3.10041079,654.7,654.25,1.13018886]
[1740075999600,3.10041079,654.69,654.25,1.13018886]
[1740075999803,3.10041079,654.68,654.25,1.13018886]
[1740076000005,3.10041079,654.67,654.25,1.13018886]
[1740076000209,2.21184678,654.7,654.25,1.13018886]
[1740076000404,3.09823568,654.69,654.25,1.13018886]
[1740076000601,3.09823568,654.68,654.25,1.13018886]
[1740076000804,3.09823568,654.67,654.25,1.13018886]
[1740076001001,2.21184678,654.7,654.25,1.13018886]
[1740076001202,3.09770814,654.69,654.25,1.13018886]
[1740076001506,3.09770814,654.68,654.25,1.13018886]
[1740076001706,3.09770814,654.67,654.25,1.13018886]
[1740076001903,2.21184678,654.69,654.25,1.13018886]
[1740076002101,3.09721231,654.68,654.25,1.13018886]
[1740076002305,2.21184678,654.69,654.25,1.13018886]
[1740076003102,2.21184678,654.69,654.07,1.13018886]
[1740076003407,2.21184678,654.68,654.07,1.13018886]
[1740076005204,2.21184678,654.67,654.07,1.13018886]
[1740076006810,2.21184678,654.67,653.96,1.13018886]
[1740076007013,2.21184678,654.66,653.96,1.13018886]
[1740076007713,3.09510051,654.65,653.96,1.13018886]
[1740076008015,2.21184678,654.66,653.96,1.13018886]
[1740076008215,3.09508779,654.65,653.96,1.13018886]
[1740076008411,2.21184678,654.66,653.96,1.13018886]
[1740076008715,1.234,654.92,653.96,1.13018886]
[1740076008916,1.234,654.92,653.91,1.13018886]
[1740076008917,3.0949516,654.91,653.91,1.13018886]
[1740076009117,3.0949516,654.9,653.92,0.30584781]
[1740076009311,3.0949516,654.89,653.92,0.30584781]
[1740076009510,3.0949516,654.88,653.92,0.30584781]
[1740076009713,3.0949516,654.87,653.92,0.30584781]
[1740076009913,3.0949516,654.86,653.92,0.30584781]
[1740076010113,3.0949516,654.85,653.92,0.30584781]
[1740076010413,3.0949516,654.84,653.92,0.30584781]
[1740076010612,2.20819176,654.89,653.92,0.30584781]
[1740076010613,3.0949516,654.83,653.92,0.30584781]
[1740076010815,3.0949516,654.82,653.92,0.30584781]
[1740076011015,3.0949516,654.81,653.92,0.30584781]
[1740076011211,3.0949516,654.8,653.92,0.30584781]
[1740076011516,3.0949516,654.79,653.98,1.13018886]
[1740076011715,3.0949516,654.78,653.98,1.13018886]
[1740076011915,3.0949516,654.77,653.98,1.13018886]
[1740076012120,3.0949516,654.76,653.98,1.13018886]
[1740076012315,1.457,654.82,653.98,1.13018886]
[1740076012316,3.0949516,654.75,653.98,1.13018886]
[1740076012512,3.0949516,654.74,653.98,1.13018886]
[1740076012716,3.0949516,654.73,653.98,1.13018886]
[1740076012918,3.0949516,654.72,653.98,1.13018886]
[1740076013217,3.0949516,654.71,653.98,1.13018886]
[1740076013418,3.0949516,654.7,653.98,1.13018886]
[1740076013616,3.0949516,654.69,653.98,1.13018886]
[1740076013918,3.0949516,654.68,653.98,1.13018886]
[1740076014117,3.0949516,654.67,653.98,1.13018886]
[1740076014318,3.0949516,654.66,653.92,0.30584781]
[1740076014513,3.0949516,654.65,653.92,0.30584781]
[1740076014717,3.0949516,654.64,653.92,0.30584781]
[1740076014912,3.0949516,654.63,653.92,0.30584781]
[1740076015110,3.0949516,654.62,653.92,0.30584781]
[1740076015312,3.0949516,654.61,653.92,0.30584781]
[1740076015515,3.0949516,654.6,653.92,0.30584781]
[1740076015717,3.0949516,654.59,653.92,0.30584781]
[1740076015914,3.0949516,654.58,653.92,0.30584781]
[1740076016116,3.0949516,654.57,653.92,0.30584781]
[1740076016319,3.0949516,654.56,653.92,0.30584781]
[1740076016520,3.0949516,654.55,653.92,0.30584781]
[1740076016718,3.0949516,654.54,653.92,0.30584781]
[1740076016919,3.0949516,654.53,653.92,0.30584781]
[1740076017117,3.0949516,654.52,653.92,0.30584781]
[1740076017318,3.0949516,654.51,653.92,0.30584781]
[1740076017516,3.0949516,654.5,653.92,0.30584781]
[1740076017722,3.0949516,654.49,653.92,0.30584781]
[1740076018019,3.0949516,654.48,653.92,0.30584781]
[1740076018220,3.0949516,654.47,653.92,0.30584781]
[1740076018425,3.0949516,654.46,653.92,0.30584781]
[1740076018621,3.0949516,654.45,653.92,0.30584781]
[1740076018821,3.0949516,654.44,653.92,0.30584781]
[1740076019022,2.20819176,654.51,653.92,0.30584781]
[1740076019322,3.09754936,654.5,653.92,0.30584781]
[1740076019523,3.09754936,654.49,653.92,0.30584781]
[1740076019722,3.09754936,654.48,653.92,0.30584781]
[1740076019921,3.09754936,654.47,653.92,0.30584781]
[1740076020117,3.09754936,654.46,653.92,0.30584781]
[1740076020420,2.20819176,654.49,653.92,0.30584781]
[1740076020421,3.09754936,654.45,653.92,0.30584781]
[1740076020617,3.09754936,654.44,653.92,0.30584781]
[1740076020817,3.09754936,654.43,653.92,0.30584781]
[1740076021022,2.20819176,654.49,653.92,0.30584781]
[1740076021226,3.09784005,654.48,653.92,0.30584781]
[1740076021424,3.09784005,654.47,653.92,0.30584781]
[1740076021623,3.09784005,654.46,653.92,0.30584781]
[1740076021823,3.09784005,654.45,653.92,0.30584781]
[1740076022123,2.20819176,654.48,653.92,0.30584781]
[1740076022325,3.09808393,654.47,653.92,0.30584781]
[1740076022525,3.09808393,654.46,654.07,1.13018886]
[1740076022823,2.20819176,654.48,654.07,1.13018886]
[1740076023923,2.20819176,654.47,654.07,1.13018886]
[1740076025521,2.20819176,654.46,654.07,1.13018886]
[1740076026226,2.20819176,654.46,653.81,1.13018886]
[1740076027322,2.20819176,654.45,653.81,1.13018886]
[1740076029122,2.20819176,654.45,653.8,1.13018886]
[1740076029728,2.20819176,654.44,653.8,1.13018886]
[1740076031639,2.20819176,654.44,653.76,1.13018886]
[1740076032030,1.507,654.71,653.76,1.13018886]
[1740076032232,3.09813565,654.7,653.76,1.13018886]
[1740076032433,3.09813565,654.69,653.76,1.13018886]
[1740076032737,3.09813565,654.68,653.76,1.13018886]
[1740076032935,3.09813565,654.67,653.76,1.13018886]
[1740076033137,3.09813565,654.66,653.76,1.13018886]
[1740076033337,3.09813565,654.65,653.76,1.13018886]
[1740076033534,3.09813565,654.64,653.76,1.13018886]
[1740076033742,3.09813565,654.63,653.76,1.13018886]
[1740076033942,3.09813565,654.62,653.76,1.13018886]
[1740076034140,3.09813565,654.61,653.76,1.13018886]
[1740076034343,2.2107227,654.69,653.76,1.13018886]
[1740076034344,3.09813565,654.6,653.76,1.13018886]
[1740076034535,3.09813565,654.59,653.76,1.13018886]
[1740076034736,3.09813565,654.58,654.05,1.13018886]
[1740076034939,3.09813565,654.57,654.05,1.13018886]
[1740076035139,3.09813565,654.56,654.05,1.13018886]
[1740076035440,3.09813565,654.55,654.05,1.13018886]